{"text_format":"1","workbook":"xlsx","n_sheets":2,"sheets":["Grundvermögen","__Goal_Metadata"],"not_rendered":{"charts":0,"images":8,"macros":0,"external_links":0,"defined_names":3,"comments":1,"pivot_tables":0},"unopened":[],"bounds":{"document_bytes":16777216,"sheet_cells":100000,"rows_first":2000,"rows_last":500,"rows_between":2000,"halvings":0,"cell_chars":16384,"cell_head_chars":4096},"cells_cut":0,"cells_raw":0,"read":"whole","date_system":"1900"}

{"sheet":"Grundvermögen","index":0,"n_rows":182,"n_cols":35,"rows_kept":182,"cut":false,"hidden":false,"merged":[[21,4,21,10],[22,4,22,10],[23,4,23,10],[37,7,37,10],[39,7,39,10],[41,7,41,10],[43,7,43,10],[47,7,47,10],[15,6,15,10],[49,8,49,10],[35,8,35,10],[19,4,19,10],[20,4,20,10],[45,7,45,10]]}
["V=7.3;ID=20000;Typ=GRUND"]
[]
[]
[]
[]
[]
[]
[]
[]
[null,null,null,"Private Finanz- und Vermögensplanung"]
[null,null,null,"Immobilien"]
[]
[]
[null,null,null,"Allgemeine Angaben"]
[]
[null,null,null,null,"Erstellt von:"]
[]
[null,null,null,null,"Anmerkungen, z.B. zu Eigentumsverhältnissen:"]
[]
[]
[]
[]
[]
[]
[]
[]
[null,null,null,"Angaben zu Immobilien"]
[]
[]
[]
[]
[]
[]
[]
[]
[null,null,null,null,"Art der Immobilie"]
[]
[null,null,null,null,"Bezeichnung"]
[]
[null,null,null,null,"Straße"]
[]
[null,null,null,null,"Postleitzahl"]
[]
[null,null,null,null,"PLZ Ausland"]
[]
[null,null,null,null,"Ort"]
[]
[null,null,null,null,"Katasterbezeichnung"]
[]
[null,null,null,null,"Nutzungsform"]
[]
[null,null,null,null,"Vermietungsanteil Selbstnutzung und Vermietung",null,null,null,null,null,"%"]
[]
[null,null,null,null,"Grundstücksgröße",null,null,null,null,null,"m²"]
[]
[null,null,null,null,"Nutzfläche",null,null,null,null,null,"m²"]
[]
[null,null,null,null,"Wohnfläche",null,null,null,null,null,"m²"]
[]
[null,null,null,null,"Baujahr des Gebäudes (jjjj)"]
[]
[null,null,null,null,"Anschaffungs-/Herstellungsdatum (tt.mm.jjjj)"]
[]
[null,null,null,null,"Anschaffungs-/Herstellungskosten für das Gebäude",null,null,null,null,null,"€"]
[]
[null,null,null,null,"Anschaffungskosten für Grund und Boden",null,null,null,null,null,"€"]
[]
[null,null,null,null,"Angaben zu Zahlungen ab (mm.jjjj)"]
[]
[null,null,null,null,"Miete/Pacht",null,"Zahlungsturnus",null,null,null,"€"]
[]
[null,null,null,null,"Umlagen",null,"Zahlungsturnus",null,null,null,"€"]
[]
[null,null,null,null,"Betriebskosten",null,"Zahlungsturnus",null,null,null,"€"]
[]
[null,null,null,null,"Erhaltungsaufwand",null,"Zahlungsturnus",null,null,null,"€"]
[]
[null,null,null,null,"Sonstige Kosten",null,"Zahlungsturnus",null,null,null,"€"]
[]
[null,null,null,null,"Geschätzter Marktwert zum 31.12. (jjjj)",null,"Jahr",null,null,null,"€"]
[]
[]
[]
[]
[]
[]
[]
[]
[]
[]
[]
[]
[]
[]
[]
[]
[]
[]
[]
[]
[]
[null,null,null,null,null,null,null,null,null,null,null,null,null,null,null,null,null,null,null,null,null,null,null,null,null,null,"Doppelhaushälfte","DOPPEL",null,null,"Vermietung und Verpachtung","VERMIET",null,"monatlich","MONAT"]
[null,null,null,null,null,null,null,null,null,null,null,null,null,null,null,null,null,null,null,null,null,null,null,null,null,null,"Eigentumswohnung","WOHNUNG",null,null,"Eigennutzung","EIGENNUTZ",null,"vierteljährlich","VJAHR"]
[null,null,null,null,null,null,null,null,null,null,null,null,null,null,null,null,null,null,null,null,null,null,null,null,null,null,"Einfamilienhaus","EINFAM",null,null,"Keine Nutzung","KEINENUTZ",null,"halbjährlich","HJAHR"]
[null,null,null,null,null,null,null,null,null,null,null,null,null,null,null,null,null,null,null,null,null,null,null,null,null,null,"Ferien- und Wochenendhaus/-wohnung","FERIEN",null,null,"Unentgeltliche Nutzungsüberlassung","UNENTNUTZ",null,"jährlich","JAHR"]
[null,null,null,null,null,null,null,null,null,null,null,null,null,null,null,null,null,null,null,null,null,null,null,null,null,null,"Gemischt genutztes Grundstück","MISCHGR",null,null,"Selbstnutzung und Vermietung","MISCHNUTZ",null,"einmalig","EINM"]
[null,null,null,null,null,null,null,null,null,null,null,null,null,null,null,null,null,null,null,null,null,null,null,null,null,null,"Geschäftsgrundstück","GESCHGR"]
[null,null,null,null,null,null,null,null,null,null,null,null,null,null,null,null,null,null,null,null,null,null,null,null,null,null,"Mehrfamilienhaus","MEHRFAM"]
[null,null,null,null,null,null,null,null,null,null,null,null,null,null,null,null,null,null,null,null,null,null,null,null,null,null,"Reihenhaus","REIHEN"]
[null,null,null,null,null,null,null,null,null,null,null,null,null,null,null,null,null,null,null,null,null,null,null,null,null,null,"Zweifamilienhaus","ZWEIFAM"]
[null,null,null,null,null,null,null,null,null,null,null,null,null,null,null,null,null,null,null,null,null,null,null,null,null,null,"Sonstiges bebautes Grundstück","SONBEB"]
[null,null,null,null,null,null,null,null,null,null,null,null,null,null,null,null,null,null,null,null,null,null,null,null,null,null,"In Bebauung befindliches Grundstück","BEBAUEN"]
[null,null,null,null,null,null,null,null,null,null,null,null,null,null,null,null,null,null,null,null,null,null,null,null,null,null,"Unbebautes Grundstück","UNBEBAU"]
[]
[]
[null,null,null,null,null,null,null,null,null,null,null,null,null,null,null,null,null,null,null,null,null,null,null,null,null,null,"Notiz erstellen:"]
[null,null,null,null,null,null,null,null,null,null,null,null,null,null,null,null,null,null,null,null,null,null,null,null,null,null,"Beschriftung","Wert"]
[null,null,null,null,null,null,null,null,null,null,null,null,null,null,null,null,null,null,null,null,null,null,null,null,null,null,{"$f":"IF(G16=\"\",\"\",E16)","v":""},{"$f":"IF(G16=\"\",\"\",G16)","v":""}]
[null,null,null,null,null,null,null,null,null,null,null,null,null,null,null,null,null,null,null,null,null,null,null,null,null,null,{"$f":"IF(AND(E20=\"\",E21=\"\",E22=\"\",E23=\"\",E24=\"\"),\"\",\"Anmerkungen:\")","v":""},{"$f":"TRIM(E20&\" \"&E21&\" \"&E22&\" \"&E23&\" \"&E24)","v":""}]
[null,null,null,null,null,null,null,null,null,null,null,null,null,null,null,null,null,null,null,null,null,null,null,null,null,null,{"$f":"IF(OR(AA118=\"\",AA119=\"\"),\"\",\"; \")","v":""}]
[null,null,null,null,null,null,null,null,null,null,null,null,null,null,null,null,null,null,null,null,null,null,null,null,null,null,"Notiz:"]
[null,null,null,null,null,null,null,null,null,null,null,null,null,null,null,null,null,null,null,null,null,null,null,null,null,null,{"$f":"AA118&\" \"&AB118&AA120&AA119&\" \"&AB119","v":"  "}]
[]
[]
[]
[]
[]
[]
[]
[]
[]
[]
[]
[]
[]
[]
[]
[]
[]
[]
[]
[]
[]
[]
[]
[]
[]
[null,null,null,null,null,null,null,null,null,null,null,null,null,null,null,null,null,null,null,null,null,null,null,null,null,null,"DB-Infofeld","Wert","Gültigkeit"]
[]
[null,null,null,null,null,null,null,null,null,null,null,null,null,null,null,null,null,null,null,null,null,null,null,null,null,null,"artgrund",null,"Listeneintrag","Typ Text"]
[null,null,null,null,null,null,null,null,null,null,null,null,null,null,null,null,null,null,null,null,null,null,null,null,null,null,"bez",{"$f":"TEXT(H38,\"standard\")","v":"0"},"0-50","Typ Text"]
[null,null,null,null,null,null,null,null,null,null,null,null,null,null,null,null,null,null,null,null,null,null,null,null,null,null,"strasse",{"$f":"TEXT(H40,\"standard\")","v":"0"},"0-36","Typ Text"]
[null,null,null,null,null,null,null,null,null,null,null,null,null,null,null,null,null,null,null,null,null,null,null,null,null,null,"plzinl",{"$f":"TEXT(H42,\"standard\")","v":"0"},"0-99999","Typ Text"]
[null,null,null,null,null,null,null,null,null,null,null,null,null,null,null,null,null,null,null,null,null,null,null,null,null,null,"plzausl",{"$f":"TEXT(H44,\"standard\")","v":"0"},"0-10","Typ Text; Buchstaben möglich!"]
[null,null,null,null,null,null,null,null,null,null,null,null,null,null,null,null,null,null,null,null,null,null,null,null,null,null,"ort",{"$f":"TEXT(H46,\"standard\")","v":"0"},"0-30","Typ Text"]
[null,null,null,null,null,null,null,null,null,null,null,null,null,null,null,null,null,null,null,null,null,null,null,null,null,null,"kataster",{"$f":"TEXT(H48,\"standard\")","v":"0"},"0-50","Typ Text"]
[null,null,null,null,null,null,null,null,null,null,null,null,null,null,null,null,null,null,null,null,null,null,null,null,null,null,"nutzung","VERMIET","Listeneintrag","Typ Text"]
[null,null,null,null,null,null,null,null,null,null,null,null,null,null,null,null,null,null,null,null,null,null,null,null,null,null,"dynamietsatz",{"$f":"ROUND(J52,2)","v":0},"Dez >=0"]
[null,null,null,null,null,null,null,null,null,null,null,null,null,null,null,null,null,null,null,null,null,null,null,null,null,null,"groesse",{"$f":"ROUND(J54,2)","v":0},"Dez >=0"]
[null,null,null,null,null,null,null,null,null,null,null,null,null,null,null,null,null,null,null,null,null,null,null,null,null,null,"nutzflaeche",{"$f":"ROUND(J56,2)","v":0},"Dez >=0"]
[null,null,null,null,null,null,null,null,null,null,null,null,null,null,null,null,null,null,null,null,null,null,null,null,null,null,"wohnflaeche",{"$f":"ROUND(J58,2)","v":0},"Dez >=0"]
[null,null,null,null,null,null,null,null,null,null,null,null,null,null,null,null,null,null,null,null,null,null,null,null,null,null,"laufbeginn",{"$f":"J60","v":0},4]
[null,null,null,null,null,null,null,null,null,null,null,null,null,null,null,null,null,null,null,null,null,null,null,null,null,null,"vom",{"$f":"J62","v":"00:00:00"},">=1900"]
[null,null,null,null,null,null,null,null,null,null,null,null,null,null,null,null,null,null,null,null,null,null,null,null,null,null,"_TurnusSparbetrag","EINM"]
[null,null,null,null,null,null,null,null,null,null,null,null,null,null,null,null,null,null,null,null,null,null,null,null,null,null,"sparbetrag",{"$f":"ROUND(J64,2)","v":0},"Dez>=0"]
[null,null,null,null,null,null,null,null,null,null,null,null,null,null,null,null,null,null,null,null,null,null,null,null,null,null,"_TurnusSparbetrag2","EINM"]
[null,null,null,null,null,null,null,null,null,null,null,null,null,null,null,null,null,null,null,null,null,null,null,null,null,null,"sparbetrag",{"$f":"ROUND(J66,2)","v":0},"Dez>=0"]
[null,null,null,null,null,null,null,null,null,null,null,null,null,null,null,null,null,null,null,null,null,null,null,null,null,null,"monat",{"$f":"MONTH(J68)","v":1},"mm.jjjj"]
[null,null,null,null,null,null,null,null,null,null,null,null,null,null,null,null,null,null,null,null,null,null,null,null,null,null,"jahr",{"$f":"YEAR(J68)","v":1900},"mm.jjjj"]
[null,null,null,null,null,null,null,null,null,null,null,null,null,null,null,null,null,null,null,null,null,null,null,null,null,null,"_TurnusEinnahmen","MONAT","Listeneintrag","Typ Text"]
[null,null,null,null,null,null,null,null,null,null,null,null,null,null,null,null,null,null,null,null,null,null,null,null,null,null,"einnahmen",{"$f":"ROUND(J70,2)","v":0},"Dez>=0"]
[null,null,null,null,null,null,null,null,null,null,null,null,null,null,null,null,null,null,null,null,null,null,null,null,null,null,"_TurnusEinnahmen2","MONAT","Listeneintrag","Typ Text"]
[null,null,null,null,null,null,null,null,null,null,null,null,null,null,null,null,null,null,null,null,null,null,null,null,null,null,"einnahmen",{"$f":"ROUND(J72,2)","v":0},"Dez>=0"]
[null,null,null,null,null,null,null,null,null,null,null,null,null,null,null,null,null,null,null,null,null,null,null,null,null,null,"_TurnusAusgaben","MONAT","Listeneintrag","Typ Text"]
[null,null,null,null,null,null,null,null,null,null,null,null,null,null,null,null,null,null,null,null,null,null,null,null,null,null,"ausgaben",{"$f":"ROUND(J74,2)","v":0},"Dez>=0"]
[null,null,null,null,null,null,null,null,null,null,null,null,null,null,null,null,null,null,null,null,null,null,null,null,null,null,"_TurnusAusgaben2","MONAT","Listeneintrag","Typ Text"]
[null,null,null,null,null,null,null,null,null,null,null,null,null,null,null,null,null,null,null,null,null,null,null,null,null,null,"ausgaben",{"$f":"ROUND(J76,2)","v":0},"Dez>=0"]
[null,null,null,null,null,null,null,null,null,null,null,null,null,null,null,null,null,null,null,null,null,null,null,null,null,null,"_TurnusAusgaben3","MONAT","Listeneintrag","Typ Text"]
[null,null,null,null,null,null,null,null,null,null,null,null,null,null,null,null,null,null,null,null,null,null,null,null,null,null,"ausgaben",{"$f":"ROUND(J78,2)","v":0},"Dez>=0"]
[null,null,null,null,null,null,null,null,null,null,null,null,null,null,null,null,null,null,null,null,null,null,null,null,null,null,"histdatum",{"$f":"DATE(H80,12,31)","v":"1900-12-31"},"tt.mm.jjjj","Typ Datum"]
[null,null,null,null,null,null,null,null,null,null,null,null,null,null,null,null,null,null,null,null,null,null,null,null,null,null,"verkwert",{"$f":"ROUND(J80,2)","v":0},"Dez>=0"]
[null,null,null,null,null,null,null,null,null,null,null,null,null,null,null,null,null,null,null,null,null,null,null,null,null,null,"notiz",{"$f":"AA122","v":"  "}]

{"sheet":"__Goal_Metadata","index":1,"n_rows":2,"n_cols":2,"rows_kept":2,"cut":false,"hidden":true,"merged":[]}
["_KAW999934","J"]
["_KAW999929","e1d1203e-8c79-4961-9f1f-306f68078519"]